Cogmind - Beta 16.1 @@@ ROGUE MODE // 2026.02.18 @ 17:10:47 Player: Megaknight51 Result: Destroyed by G-67 Veteran with Plasma Rifle Performance ------------- Evolutions (7) 3500 Regions Visited (13) 2600 Robots Destroyed (76) 380 Value Destroyed (2812) 2812 Prototype IDs (35) 700 Alien Tech Used (0) 0 Bonus (670) 670 TOTAL SCORE: 10662 Bonus ------- High Alert Combat Kills 70 Registered with UFD 300 Met Data Miner 300 Cogmind --------- Core Integrity 0/1300 Matter 300/300 Energy 100/100 System Corruption 16% Temperature Cool (37) Movement Core (50) Location -3/Research Parts ------- > --- POWER (2) -------- (None) > --- PROPULSION (6) --- (None) > --- UTILITY (9) ------ (None) > --- WEAPON (4) ------- (None) > --- INVENTORY (5) ---- Neutrino Core Improved Terrain Scanner Enhanced Scrap Shield Authchip [Processor] Peak State ------------ > --- POWER ------------ Light Antimatter Reactor Micro Antimatter Reactor > --- PROPULSION ------- Carbon-fiber Leg Carbon-fiber Leg Biometal Leg Biometal Leg Biometal Leg Biometal Leg > --- UTILITY ---------- Huge Storage Unit Enhanced Optical Array Enhanced Optical Array Advanced Signal Interpreter Advanced Target Analyzer Advanced Target Analyzer Advanced Target Analyzer Advanced Target Analyzer Core Analyzer > --- WEAPON ----------- Makeshift Axe Makeshift Axe Great Axe Power Sword > --- INVENTORY -------- Light Angular Momentum Engine Neutrino Core Matter Compressor Gravity Neutralizer Improved Terrain Scanner Enhanced Scrap Shield Authchip [Processor] Grenade Launcher Improved Remote Datajack Improved Plasma Cutter Mace Mace [Rating: 123] Favorites ----------- Power Angular Momentum Engine Engine Angular Momentum Engine Power Core Neutrino Core Reactor Micro Antimatter Reactor Propulsion Improved Treads Treads Improved Treads Leg Carbon-fiber Leg Wheel Wheel Utility Large Storage Unit Device Seismic Detector Storage Large Storage Unit Processor Core Analyzer Protection Enhanced Scrap Shield Weapon Ripper Energy Gun Small Laser Energy Cannon Beam Cannon Ballistic Gun Shotgun Launcher Grenade Launcher Special Weapon Mining Laser Impact Weapon Maul Slashing Weapon Ripper Piercing Weapon Spear Build | -11 -10 -10 -10 -9 -9 -6 -6 -6 -6 -5 -5 -4 -3 ------- Run | Yrd Mat Min Sub Rec Scr Fac Low Low Dat Pro Fac Fac Res Slots Evolved 14 | . . . . . . 8 . . . . 2 2 2 Power 1 | . . . . . . 1 . . . . . . . Propulsion 4 | . . . . . . 2 . . . . . . 2 Utility 7 | . . . . . . 4 . . . . 1 2 . Weapon 2 | . . . . . . 1 . . . . 1 . . Parts Attached 107 | 7 17 . 3 4 3 16 8 . . 10 10 2 27 Power 14 | 1 2 . . 1 . 2 . . . 3 1 . 4 Engine 9 | 1 2 . . 1 . 2 . . . 3 . . . Core 1 | . . . . . . . . . . . 1 . . Reactor 4 | . . . . . . . . . . . . . 4 Propulsion 27 | 2 4 . . 2 1 3 3 . . 3 3 . 6 Treads 7 | . 2 . . 2 1 1 . . . . . . 1 Leg 16 | . . . . . . 2 3 . . 3 3 . 5 Wheel 4 | 2 2 . . . . . . . . . . . . Hover . | . . . . . . . . . . . . . . Flight . | . . . . . . . . . . . . . . Utility 45 | 2 6 . 2 1 1 8 2 . . 2 5 2 14 Device 16 | 1 2 . 1 . . 4 1 . . 1 2 1 3 Storage 5 | 1 2 . . . . . . . . . . . 2 Processor 16 | . . . . . . 3 . . . . 3 1 9 Hackware . | . . . . . . . . . . . . . . Protection 8 | . 2 . 1 1 1 1 1 . . 1 . . . Artifact . | . . . . . . . . . . . . . . Weapon 21 | 2 5 . 1 . 1 3 3 . . 2 1 . 3 Energy Gun 1 | 1 . . . . . . . . . . . . . Energy Cannon 1 | . . . 1 . . . . . . . . . . Ballistic Gun 5 | 1 3 . . . 1 . . . . . . . . Ballistic Cannon . | . . . . . . . . . . . . . . Launcher 1 | . . . . . . . . . . . . . 1 Special Weapon 1 | . 1 . . . . . . . . . . . . Impact Weapon 3 | . 1 . . . . 2 . . . . . . . Slashing Weapon 8 | . . . . . . . 3 . . 2 1 . 2 Piercing Weapon 1 | . . . . . . 1 . . . . . . . Special Melee Weapon . | . . . . . . . . . . . . . . Unidentified Prototypes 4 | . . . . . . 1 1 . . . . . 2 Corrupted Parts 2 | . . . . . . . 1 . . . . . 1 System Corruption 5 | . . . . . . . 4 . . . . . 1 Parts Lost 50 | . 2 . 1 . . 8 1 1 . 8 4 . 25 Power 8 | . 1 . 1 . . 1 . . . 3 . . 2 Propulsion 18 | . 1 . . . . 2 . 1 . 2 2 . 10 Utility 13 | . . . . . . 4 1 . . 2 1 . 5 Weapon 11 | . . . . . . 1 . . . 1 1 . 8 Highest Loss Streak 15 | . 1 . 1 . . 8 1 1 . 5 2 . 15 To Critical Strikes . | . . . . . . . . . . . . . . Average Backups 12 | 3 11 14 13 13 12 11 11 14 13 12 13 13 12 Power . | 1 1 . . 1 . . . . 1 . . 1 1 Propulsion 1 | . 1 2 3 3 2 2 1 1 1 1 1 1 1 Utility 5 | . 4 7 5 4 6 5 5 5 5 4 4 5 5 Weapon 4 | 1 4 5 4 4 3 4 4 7 6 5 5 4 3 Tool/Special . | . . . . . . . . . . . . . . Unused Backups 14 | . 3 . 2 . 2 . . 1 . . . 1 5 Power 2 | . 1 . . . . . . . . . . . 1 Propulsion 2 | . 1 . . . 1 . . . . . . . . Utility 5 | . . . 1 . 1 . . . . . . 1 2 Weapon 3 | . 1 . 1 . . . . 1 . . . . . Tool/Special 2 | . . . . . . . . . . . . . 2 Average Slot Usage (%) 88 | . 99 100 99 98 100 56 77 81 80 67 81 87 83 Engine 10 | . 13 14 13 12 14 2 11 11 13 8 10 5 . Treads 13 | . 11 28 28 28 28 4 3 . . . . . . Leg 6 | . . . . . . 6 8 15 13 11 16 21 22 Wheel 2 | . 16 . . . . . . . . . . . . Device 6 | . 12 14 13 . . 5 1 . . 1 7 8 3 Storage 9 | . 14 14 14 14 14 5 5 5 6 6 5 5 3 Processor 8 | . . . . . . 15 17 15 13 13 14 21 26 Protection 5 | . 1 . . 14 14 3 9 11 13 4 4 . . Energy Cannon 5 | . . . 13 14 14 . . . . . . . . Ballistic Gun 7 | . 19 28 9 14 14 . . . . . . . . Impact Weapon 3 | . 6 . 5 . . 5 16 . . . . . . Slashing Weapon 6 | . . . . . . . . 17 20 19 18 21 17 Peak Build Rating 123 | 7 13 13 14 15 20 58 78 78 56 56 71 78 123 Average Rating 38 | 6 11 13 12 14 18 44 67 70 55 43 58 72 99 On Entrance 37 | . 7 13 13 13 15 20 58 78 56 56 53 71 71 Avg Prop Armor Cover (%) 6 | . . . . . . 8 3 . . . . . 6 Naked Turns 39 | . . . . . . . . . . . . . 39 Heaviest Build 113 | 11 34 30 32 36 43 57 72 72 72 72 57 57 113 Greatest Support 142 | 26 46 46 46 46 46 75 85 85 30 57 72 60 142 Greatest Overweight (x) 14 | . 1 . . . . 1 1 2 2 9 1 . 14 Average Overweight (x) . | . . . . . . . . . 2 . . . . Largest Inventory Capacity 25 | 8 15 15 15 15 15 15 15 15 15 15 15 15 25 Average Capacity 14 | 7 12 15 15 15 15 15 15 15 15 15 15 15 17 Most Carried 15 | 7 15 14 15 15 15 15 15 15 14 15 15 15 15 Average Carried 13 | 4 12 14 14 15 14 11 11 14 13 12 14 14 13 Final Capacity 15 | 8 15 15 15 15 15 15 15 15 15 15 15 15 5 Final Carried 15 | 7 14 14 15 15 15 11 15 13 13 12 15 15 5 Class Distribution -------------------- 83% | Mutant 8% | Scavenger-Mutant 7% | Derelict-Mutant Dominant Class ---------------- Mutant | -10/Materials Mutant | -10/Mines Mutant | -10/Subcaves Mutant | -9/Recycling Mutant | -9/Scraptown Mutant | -6/Factory Mutant | -6/Lower Caves Mutant | -6/Lower Caves Mutant | -6/Data Miner Mutant | -5/Proximity Caves Derelict-Mutant | -5/Factory Scavenger-Mutant | -4/Factory Scavenger-Mutant | -3/Research Resources | -11 -10 -10 -10 -9 -9 -6 -6 -6 -6 -5 -5 -4 -3 ----------- Run | Yrd Mat Min Sub Rec Scr Fac Low Low Dat Pro Fac Fac Res Matter Collected 2376 | 294 487 . 322 117 40 140 368 81 . 133 105 . 289 Remotely . | . . . . . . . . . . . . . . Salvage Created 3395 | 213 527 . 105 57 . 350 213 75 . 364 556 . 935 Parts 155 | 16 39 . 5 3 . 8 3 4 . 13 23 . 41 Haulers Intercepted 2 | . 1 . . . . . . . . . 1 . . Recyclers Shooed . | . . . . . . . . . . . . . . Parts Field Recycled . | . . . . . . . . . . . . . . Retrieved Matter . | . . . . . . . . . . . . . . Parts Self-Destructed 28 | . . . 12 . . . . 4 . 12 . . . Prevented 2 | . . . . . . . 2 . . . . . . Parts Restored . | . . . . . . . . . . . . . . Kills | -11 -10 -10 -10 -9 -9 -6 -6 -6 -6 -5 -5 -4 -3 ------- Run | Yrd Mat Min Sub Rec Scr Fac Low Low Dat Pro Fac Fac Res Combat Hostiles Destroyed 49 | . 12 . 2 1 . 7 4 1 . 6 5 . 11 Melee 29 | . . . . . . 5 3 1 . 6 5 . 9 Guns 14 | . 12 . 1 1 . . . . . . . . . Cannons 1 | . . . 1 . . . . . . . . . . Classes Destroyed 15 | 3 5 . 2 . . 2 . . . 1 . . 2 Worker 4 | 2 1 . . . . . . . . . . . 1 Builder 7 | . 4 . . . . 1 . . . . 2 . . Tunneler 6 | 5 . . . . . . . . . . 1 . . Hauler 2 | . 1 . . . . . . . . . 1 . . Recycler 3 | 1 . . . . . . . . . . 1 . 1 Mechanic 1 | . 1 . . . . . . . . . . . . Turret 2 | . . . 2 . . . . . . . . . . Watcher 2 | . . . . . . . . . . . . . 2 Swarmer 7 | . 3 . 1 . . . . . . . . . 3 Grunt 24 | . 9 . . . . 3 3 . . 5 3 . 1 Brawler 1 | . . . . . . . . . . . . . 1 Duelist 1 | . . . . . . . . . . 1 . . . Sentry 6 | . . . 1 1 . 1 1 1 . . . . 1 Specialist 2 | . . . . . . 2 . . . . . . . Programmer 8 | . . . . . . 1 . . . . 2 . 5 Best Kill Streak 7 | 5 3 . 2 1 . 3 2 1 . 3 2 . 7 Combat Bots Only 5 | . 3 . 1 1 . 3 2 1 . 3 2 . 5 Max Kills in Single Turn 2 | 1 2 . 1 1 . 1 1 1 . 1 1 . 1 Gunslinging . | . . . . . . . . . . . . . . Exploded . | . . . . . . . . . . . . . . Melee 1 | . . . . . . 1 1 1 . 1 1 . 1 Uniques/NPCs Destroyed . | . . . . . . . . . . . . . . Combat | -11 -10 -10 -10 -9 -9 -6 -6 -6 -6 -5 -5 -4 -3 -------- Run | Yrd Mat Min Sub Rec Scr Fac Low Low Dat Pro Fac Fac Res Hostile Shots Fired 646 | . 42 5 60 . . 109 57 27 . 75 29 9 233 Missed 166 | . 6 2 24 . . 26 16 11 . 17 7 4 53 Hits 480 | . 36 3 36 . . 83 41 16 . 58 22 5 180 Melee 6 | . . . . . . . . . . 1 . . 5 Projectile 474 | . 36 3 36 . . 83 41 16 . 57 22 5 175 Critical Strikes 25 | . . . 1 . . 7 2 . . 4 . . 11 Part Disruptions 2 | . . . . . . 1 . . . . . . 1 Damage Taken 8567 | . 566 48 221 . . 1381 629 130 . 1124 504 82 3882 Core 2179 | . 76 . 27 . . 310 54 6 . 304 80 21 1301 Absorbed by Shields 322 | . . . . . . 119 . . . . . . 203 Redirected to Shielding 13 | . . . . . . . . . . . 13 . . Ignored by Resistances 16 | . . . . . . 16 . . . . . . . Core Remaining (%) 73 | 100 . . . . 58 . . . . 20 92 98 . Volleys Fired 86 | 24 47 . 13 1 . . . . . . . . 1 Largest 2 | 2 2 . 2 2 . . . . . . . . 1 Hottest 100 | 60 100 . 83 83 . . . . . . . . 30 Shots Fired 168 | 48 91 . 26 2 . . . . . . . . 1 Gun 151 | 48 89 . 13 1 . . . . . . . . . Cannon 14 | . . . 13 1 . . . . . . . . . Launcher 1 | . . . . . . . . . . . . . 1 Special 2 | . 2 . . . . . . . . . . . . Kinetic 122 | 24 84 . 13 1 . . . . . . . . . Thermal 45 | 24 7 . 13 1 . . . . . . . . . Explosive 1 | . . . . . . . . . . . . . 1 Electromagnetic . | . . . . . . . . . . . . . . Robot Hit Streak 12 | 12 9 . 5 7 . . . . . . . . 8 Robot Miss Streak 8 | 3 7 . 8 . . . . . . . . . . Penetration Max . | . . . . . . . . . . . . . . Secondary Targets . | . . . . . . . . . . . . . . Shots Hit Robots 275 | 32 62 . 15 2 . 27 21 1 . 24 24 . 67 Core Hits 113 | 12 29 . 7 2 . 6 6 1 . 12 12 . 26 Critical Kills 3 | . . . . . . 3 . . . . . . . Critical Parts Destroyed 12 | . 2 . . . . 3 5 . . . . . 2 Critical Strikes 32 | . 2 . . . . 6 6 . . 4 3 . 11 Destroy 1 | . 1 . . . . . . . . . . . . Smash 15 | . 1 . . . . 6 6 . . . . . 2 Sever 16 | . . . . . . . . . . 4 3 . 9 Melee Attacks 282 | . 18 . 28 . . 34 28 2 . 34 40 1 97 Impact 118 | . 18 . 28 . . 33 28 . . . . . 11 Slashing 163 | . . . . . . . . 2 . 34 40 1 86 Piercing 1 | . . . . . . 1 . . . . . . . Sneak Attacks 14 | . 4 . . . . 1 . . . . 6 . 3 Combat Hostiles . | . . . . . . . . . . . . . . Follow-up Attacks 65 | . . . . . . 1 10 . . 12 8 . 34 Damage Inflicted 8167 | 331 1196 . 242 39 . 1088 656 41 . 839 1188 . 2547 Guns 1340 | 331 883 . 104 22 . . . . . . . . . Cannons 155 | . . . 138 17 . . . . . . . . . Explosions 69 | . . . . . . . . . . . . . 69 Melee 6521 | . 313 . . . . 1088 656 41 . 839 1188 . 2396 Ramming 82 | . . . . . . . . . . . . . 82 Kinetic 1118 | 132 860 . 104 22 . . . . . . . . . Thermal 377 | 199 23 . 138 17 . . . . . . . . . Explosive 69 | . . . . . . . . . . . . . 69 Electromagnetic . | . . . . . . . . . . . . . . Impact 2323 | . 313 . . . . 1067 656 . . . . . 287 Slashing 4177 | . . . . . . . . 41 . 839 1188 . 2109 Piercing 21 | . . . . . . 21 . . . . . . . Highest Corruption 16 | . 1 1 1 1 . 1 5 5 5 5 5 . 16 Average Corruption 2 | . 1 1 1 1 . 1 2 5 5 5 4 . 5 Corruption Purged . | . . . . . . . . . . . . . . Corruption Blocked . | . . . . . . . . . . . . . . Effects 118 | . 1 . 17 1 . 2 18 23 5 20 8 . 23 Message Errors 26 | . . . 5 . . . 3 5 . 6 3 . 4 Matter Fused 28 | . 1 . 3 . . 1 6 4 1 5 . . 7 Heat Flow Errors 16 | . . . 3 . . . 1 3 1 2 . . 6 Energy Discharges 23 | . . . 2 . . . 8 6 1 3 1 . 2 Parts Rejected 1 | . . . . 1 . . . . . . . . . Parts Fused 1 | . . . . . . 1 . . . . . . . Data Loss (minor) 14 | . . . 3 . . . . 3 1 3 2 . 2 Data Loss (major) 6 | . . . . . . . . 2 1 . 2 . 1 Alerts 3 | . . . 1 . . . . . . 1 . . 1 Overload Shots . | . . . . . . . . . . . . . . Overflow Damage 865 | . 243 . 16 . . 195 152 . . 6 108 . 145 Projectiles 16 | . . . 16 . . . . . . . . . . Explosions . | . . . . . . . . . . . . . . Melee 849 | . 243 . . . . 195 152 . . 6 108 . 145 Knockbacks 11 | . 1 . . . . 7 1 . . . . . 2 Impact 10 | . 1 . . . . 6 1 . . . . . 2 Kinetic . | . . . . . . . . . . . . . . Secondary 1 | . . . . . . 1 . . . . . . . Self-Inflicted Damage 69 | . . . . . . . . . . . . . 69 Shots 1 | . . . . . . . . . . . . . 1 Rammed 15 | . . 1 . . . . . . . . . . 14 Targets Rammed 16 | . . 1 . . . . . . . . . . 15 Kicked 1 | . . . . . . . . . . . . . 1 Crushed . | . . . . . . . . . . . . . . Highest Temperature 271 | 60 43 . 233 15 . 2 237 271 83 219 . . 252 Average Temperature 61 | 27 18 . 100 10 . 2 124 123 47 66 . . 88 Received Heat Transfer 2413 | . 216 27 150 . . 416 306 42 . 588 72 . 596 Siege Activations . | . . . . . . . . . . . . . . Martial Activations . | . . . . . . . . . . . . . . Shielding Activations . | . . . . . . . . . . . . . . Robots Disrupted . | . . . . . . . . . . . . . . Combat Hostiles . | . . . . . . . . . . . . . . Robots Corrupted 9 | . 3 . . . . 3 1 . . . . . 2 Combat Hostiles 5 | . . . . . . 2 1 . . . . . 2 Parts Fried 13 | . 6 . . . . 4 2 . . . . . 1 Impact Corruptions 22 | . 7 . . . . 8 5 . . . . . 2 Robots Melted . | . . . . . . . . . . . . . . Combat Hostiles . | . . . . . . . . . . . . . . Parts Melted 1 | 1 . . . . . . . . . . . . . Heat Transferred 833 | 450 50 . 296 37 . . . . . . . . . Parts Sabotaged . | . . . . . . . . . . . . . . Parts Stolen . | . . . . . . . . . . . . . . Parts Stripped . | . . . . . . . . . . . . . . Power Chain Reactions . | . . . . . . . . . . . . . . Alert | -11 -10 -10 -10 -9 -9 -6 -6 -6 -6 -5 -5 -4 -3 ------- Run | Yrd Mat Min Sub Rec Scr Fac Low Low Dat Pro Fac Fac Res Maximum Alert Level 3 | . . . . . . . . . . . 3 1 . Low Security (%) 83 | 100 100 100 . 100 . 100 . . . . . . 100 Level 1 . | . . . . . . . . . . . . 100 . Level 2 8 | . . . . . . . . . . . 56 . . Level 3 6 | . . . . . . . . . . . 43 . . Level 4 . | . . . . . . . . . . . . . . Level 5 . | . . . . . . . . . . . . . . High Security . | . . . . . . . . . . . . . . Max Security . | . . . . . . . . . . . . . . Peak Influence 928 | 10 116 . . 35 . 80 . . . . 928 287 139 Initial 928 | . . . . 15 . . . . . . 928 272 139 Average 139 | 2 28 . . 5 . 18 . . . . 737 278 37 Influence Increases 2705 | 40 452 . 155 20 . 186 120 20 . 270 1079 15 348 Destroy 0b10 Robot/C 1040 | . 240 . 80 20 . 140 80 20 . 140 100 . 220 Destroy 0b10 Robot/NC 125 | 40 35 . . . . 5 . . . . 25 . 20 Destroy Leader 208 | . 52 . . . . 40 10 . . 20 22 . 64 Allied During Kill 5 | . . . . . . . . . . 5 . . . Successful Hack 35 | . 35 . . . . . . . . . . . . Disable Machine 45 | . 15 . . . . . . . . . 15 15 . Destroy Structure 32 | . 15 . . . . 1 . . . . 2 . 14 Advance Influence 900 | . . . . . . . . . . . 900 . . Lose Combat Pursuer 315 | . 60 . 75 . . . 30 . . 105 15 . 30 Influence Decreases 2705 | 40 452 . 122 53 . 186 120 20 . 225 567 305 615 Entered New Map 448 | . . . . 18 . . . . . . 17 285 128 Time Decay 1730 | 40 391 . 122 35 . 136 120 20 . 165 310 20 371 Search Patrol Dispatched 200 | . . . . . . . . . . . 200 . . Lost Part 286 | . 20 . . . . 50 . . . 60 40 . 116 Purge Threat 41 | . 41 . . . . . . . . . . . . Squads Dispatched 11 | . 1 . . . . 4 . . . . 3 . 3 Investigation 4 | . . . . . . 1 . . . . 3 . . Extermination 4 | . . . . . . 1 . . . . . . 3 Reinforcement 3 | . 1 . . . . 2 . . . . . . . Assault . | . . . . . . . . . . . . . . Garrison . | . . . . . . . . . . . . . . Intercept . | . . . . . . . . . . . . . . Searches Triggered 2 | . . . . . . . . . . . 2 . . Data Miner Redirects 2 | . . . . . . . . . . . 2 . . Construction Impeded . | . . . . . . . . . . . . . . Haulers Reinforced . | . . . . . . . . . . . . . . Active Scanning Responses . | . . . . . . . . . . . . . . Cargo Convoy Interrupts . | . . . . . . . . . . . . . . Stealth | -11 -10 -10 -10 -9 -9 -6 -6 -6 -6 -5 -5 -4 -3 --------- Run | Yrd Mat Min Sub Rec Scr Fac Low Low Dat Pro Fac Fac Res Distress Signals 10 | . 3 . . . . 1 . . . . 1 1 4 Communications Jammed . | . . . . . . . . . . . . . . Distress Signals . | . . . . . . . . . . . . . . Times Spotted 103 | . 26 2 5 . . 10 6 1 . 20 8 2 23 Peak Tracking Total 7 | . 5 2 3 . . 6 3 1 . 4 4 2 7 Tactical Retreats 11 | . 2 . 1 . . . 1 . . 5 1 . 1 Traps | -11 -10 -10 -10 -9 -9 -6 -6 -6 -6 -5 -5 -4 -3 ------- Run | Yrd Mat Min Sub Rec Scr Fac Low Low Dat Pro Fac Fac Res Traps Triggered 9 | . 8 . . . . 1 . . . . . . . Indirectly . | . . . . . . . . . . . . . . Trap Hack Attempts . | . . . . . . . . . . . . . . Triggered . | . . . . . . . . . . . . . . Disarmed . | . . . . . . . . . . . . . . Reprogrammed . | . . . . . . . . . . . . . . Reused . | . . . . . . . . . . . . . . Traps Extracted . | . . . . . . . . . . . . . . Installed . | . . . . . . . . . . . . . . Triggered . | . . . . . . . . . . . . . . Machines | -11 -10 -10 -10 -9 -9 -6 -6 -6 -6 -5 -5 -4 -3 ---------- Run | Yrd Mat Min Sub Rec Scr Fac Low Low Dat Pro Fac Fac Res Machines Disabled 4 | . 1 . 1 . . . . . . . 1 1 . Max in Single Turn 1 | . 1 . 1 . . . . . . . 1 1 . Machines Repaired . | . . . . . . . . . . . . . . Machines Dismantled . | . . . . . . . . . . . . . . Machines Sabotaged . | . . . . . . . . . . . . . . Overloaded Fab Kills . | . . . . . . . . . . . . . . Hacking | -11 -10 -10 -10 -9 -9 -6 -6 -6 -6 -5 -5 -4 -3 --------- Run | Yrd Mat Min Sub Rec Scr Fac Low Low Dat Pro Fac Fac Res Machines Accessed 30 | . 8 . 1 . 1 5 1 . 4 . 6 . 4 Terminals 15 | . 8 . . . . 1 . . . . 4 . 2 Fabricators . | . . . . . . . . . . . . . . Repair Stations . | . . . . . . . . . . . . . . Recycling Units 5 | . . . . . . 3 . . . . 2 . . Scanalyzers 2 | . . . . . . . . . . . . . 2 Garrison Access 1 | . . . . . . 1 . . . . . . . Total Hacks 77 | . 19 . 1 . 1 10 1 . 29 . 9 . 7 Successful 47 | . 9 . 1 . 1 1 1 . 29 . 4 . 1 Failed 29 | . 9 . . . . 9 . . . . 5 . 6 Catastrophic 3 | . . . . . . 1 . . . . 1 . 1 Database Lockouts 1 | . 1 . . . . . . . . . . . . Manual 35 | . 16 . . . . 7 . . . . 9 . 3 Terminals 30 | . 19 . . . . 1 . . . . 7 . 3 Fabricators . | . . . . . . . . . . . . . . Repair Stations . | . . . . . . . . . . . . . . Recycling Units 8 | . . . . . . 6 . . . . 2 . . Scanalyzers 4 | . . . . . . . . . . . . . 4 Garrison Access 3 | . . . . . . 3 . . . . . . . Terminal Hacks 36 | . 4 . 1 . 1 . 1 . 29 . . . . Record 11 | . . . . . . . . . 11 . . . . Part Schematic 11 | . . . . . . . . . 11 . . . . Robot Schematic 4 | . . . . . . . . . 4 . . . . Prototype ID Bank 4 | . 1 . . . . . . . 3 . . . . Open Door 1 | . . . . . . . 1 . . . . . . Unreport Threat 1 | . 1 . . . . . . . . . . . . Hauler Manifests 1 | . 1 . . . . . . . . . . . . Zone Layout 1 | . 1 . . . . . . . . . . . . Proto ID Catalog 2 | . . . 1 . 1 . . . . . . . . Fabricator Hacks . | . . . . . . . . . . . . . . Repair Station Hacks . | . . . . . . . . . . . . . . Recycling Unit Hacks . | . . . . . . . . . . . . . . Scanalyzer 1 | . . . . . . . . . . . . . 1 Retrieve Study 1 | . . . . . . . . . . . . . 1 Garrison Access Hacks . | . . . . . . . . . . . . . . Unauthorized Hacks 10 | . 5 . . . . 1 . . . . 4 . . Terminals 7 | . 5 . . . . . . . . . 2 . . Botnet 7 | . 5 . . . . . . . . . 2 . . Fabricators . | . . . . . . . . . . . . . . Repair Stations . | . . . . . . . . . . . . . . Recycling Units 3 | . . . . . . 1 . . . . 2 . . Fedlink 3 | . . . . . . 1 . . . . 2 . . Scanalyzers . | . . . . . . . . . . . . . . Garrison Access . | . . . . . . . . . . . . . . Data Cores Recovered . | . . . . . . . . . . . . . . Used . | . . . . . . . . . . . . . . Hacking Detections 17 | . 7 . . . . 4 . . . . 2 . 4 Full Trace Events 2 | . 1 . . . . . . . . . 1 . . Feedback Events . | . . . . . . . . . . . . . . Feedback Blocked . | . . . . . . . . . . . . . . Robot Schematics Acquired 4 | . . . . . . . . . 4 . . . . Robots Built . | . . . . . . . . . . . . . . Authchips . | . . . . . . . . . . . . . . Time . | . . . . . . . . . . . . . . Total Robot Build Rating . | . . . . . . . . . . . . . . Part Schematics Acquired 11 | . . . . . . . . . 11 . . . . Parts Built . | . . . . . . . . . . . . . . Authchips . | . . . . . . . . . . . . . . Time . | . . . . . . . . . . . . . . Total Part Build Rating . | . . . . . . . . . . . . . . Part Studies Acquired 1 | . . . . . . . . . . . . . 1 Parts Repaired . | . . . . . . . . . . . . . . Time . | . . . . . . . . . . . . . . Parts Recycled . | . . . . . . . . . . . . . . Recycled Matter . | . . . . . . . . . . . . . . Retrieved Matter . | . . . . . . . . . . . . . . Retrieved Components . | . . . . . . . . . . . . . . Parts Scanalyzed . | . . . . . . . . . . . . . . Part Schematics Acquired . | . . . . . . . . . . . . . . Parts Damaged . | . . . . . . . . . . . . . . Bothacking | -11 -10 -10 -10 -9 -9 -6 -6 -6 -6 -5 -5 -4 -3 ------------ Run | Yrd Mat Min Sub Rec Scr Fac Low Low Dat Pro Fac Fac Res Used RIF Installer . | . . . . . . . . . . . . . . Robots Hacked . | . . . . . . . . . . . . . . Non-combat . | . . . . . . . . . . . . . . Combat . | . . . . . . . . . . . . . . Robot Hacks Applied . | . . . . . . . . . . . . . . Relay Couplers Released . | . . . . . . . . . . . . . . Fabnet Peak Effective % . | . . . . . . . . . . . . . . Robots Rewired . | . . . . . . . . . . . . . . Allies Hacked . | . . . . . . . . . . . . . . Hacks Repelled . | . . . . . . . . . . . . . . Allies | -11 -10 -10 -10 -9 -9 -6 -6 -6 -6 -5 -5 -4 -3 -------- Run | Yrd Mat Min Sub Rec Scr Fac Low Low Dat Pro Fac Fac Res Total Allies 1 | . . . . . . . . . . 1 . . . Largest Group 1 | . . . . . . . . . . 1 . . . Highest-Rated Group 96 | . . . . . . . . . . 96 . . . Highest-Rated Ally 96 | . . . . . . . . . . 96 . . . Initial UFD Resources 58 | . . . . . . 23 33 33 33 37 37 54 58 Total Orders . | . . . . . . . . . . . . . . Ally Attacks 21 | . . . . . . . . . . 21 . . . Total Damage 188 | . . . . . . . . . . 188 . . . Kills 1 | . . . . . . . . . . 1 . . . Allies Corrupted . | . . . . . . . . . . . . . . Allies Melted . | . . . . . . . . . . . . . . Intel | -11 -10 -10 -10 -9 -9 -6 -6 -6 -6 -5 -5 -4 -3 ------- Run | Yrd Mat Min Sub Rec Scr Fac Low Low Dat Pro Fac Fac Res Active Infowar (turns) 7664 | 120 1357 48 2713 . . 520 1192 471 . . 112 41 1090 Optics 2890 | . . . . . . 516 1192 471 . . . . 711 Sensors 659 | . 3 . . . . . . . . . 112 41 503 Terrain 1123 | . . . 1123 . . . . . . . . . . Structural 849 | . 849 . . . . . . . . . . . . Seismic 2295 | 120 505 48 1590 . . 32 . . . . . . . Jamming 128 | . . . . . . 128 . . . . . . . Robot Analysis Total . | . . . . . . . . . . . . . . Derelict Logs Recovered 9 | . . . 1 . 3 . 1 1 . 3 . . . Drone Launches . | . . . . . . . . . . . . . . Drone Recoveries . | . . . . . . . . . . . . . . Exploration | -11 -10 -10 -10 -9 -9 -6 -6 -6 -6 -5 -5 -4 -3 ------------- Run | Yrd Mat Min Sub Rec Scr Fac Low Low Dat Pro Fac Fac Res Turns Passed 12101 | 170 1538 48 2855 220 1706 562 1192 704 254 996 684 41 1131 Spaces Moved 6245 | 96 1025 16 819 131 1059 310 567 432 98 494 461 25 712 Core 54 | 1 . . . . . . . . . 1 . . 52 Treads 2377 | . 334 16 819 131 1059 17 . . . . . . 1 Legs 3028 | . . . . . . 293 567 432 98 493 461 25 659 Wheels 786 | 95 691 . . . . . . . . . . . . Hover . | . . . . . . . . . . . . . . Flight . | . . . . . . . . . . . . . . Fastest Speed 50 | 50 80 160 160 160 160 130 123 123 260 120 120 120 50 Average Speed 145 | 89 113 160 160 160 160 134 164 150 260 187 127 120 108 Slowest Speed 750 | 90 240 160 160 160 160 250 200 260 260 500 190 120 750 Overloaded Moves . | . . . . . . . . . . . . . . Propulsion Burnouts . | . . . . . . . . . . . . . . Robots Hopped . | . . . . . . . . . . . . . . Potential Cave-ins . | . . . . . . . . . . . . . . Cave-ins Triggered . | . . . . . . . . . . . . . . Exploration Rate (%) 39 | 4 96 7 48 19 78 9 63 61 75 62 13 1 20 Regions Visited 13 Branch Regions 8 Pre-discovered Areas 3 | . . . 1 . . . . . 1 1 . . . Known Exits Taken 4 | . . . . . . 1 . . . 1 1 1 . Unknown Exits Taken 9 | 1 1 1 1 1 1 . 1 1 1 . . . . Scrap Searched 10 | . . . . . 3 . 3 2 . 2 . . . Spaces Dug 19 | . 15 . . . . 1 . . . . 1 . 2 Terrain Destroyed 23 | . 15 . . . . 1 . . . . 1 . 6 Melee 17 | . 13 . . . . 1 . . . . 1 . 2 Projectile 2 | . 2 . . . . . . . . . . . . AOE 4 | . . . . . . . . . . . . . 4 Terrain Rammed . | . . . . . . . . . . . . . . Walls Destroyed . | . . . . . . . . . . . . . . Machines Disabled . | . . . . . . . . . . . . . . Actions | -11 -10 -10 -10 -9 -9 -6 -6 -6 -6 -5 -5 -4 -3 --------- Run | Yrd Mat Min Sub Rec Scr Fac Low Low Dat Pro Fac Fac Res Total 8721 | 133 1258 38 2278 139 1074 384 787 486 99 529 514 35 967 Wait 1913 | . 105 22 1394 . . 17 180 49 . 2 9 . 135 Move 6232 | 95 1024 15 818 130 1058 309 566 431 97 493 460 24 712 Hop . | . . . . . . . . . . . . . . Pick Up 45 | 7 14 . 5 1 6 1 4 1 . . 4 . 2 Fast Attach 67 | 7 9 . . 2 . 10 7 . . 6 8 4 14 Attach 25 | . 2 . . . . 8 1 . 1 4 2 . 7 Detach 16 | . . . . . . 4 5 . 1 1 1 2 2 Swap 63 | . 25 . 14 3 3 2 2 . . 1 1 . 12 Drop 53 | . 14 . 6 2 7 . 5 3 . . 2 4 10 Fire 86 | 24 47 . 13 1 . . . . . . . . 1 Melee 205 | . 18 . 28 . . 33 17 2 . 22 27 1 57 Ram 14 | . . . . . . . . . . . . . 14 Kick 1 | . . . . . . . . . . . . . 1 Crush 1 | . . 1 . . . . . . . . . . . Escape Stasis . | . . . . . . . . . . . . . . Rewire . | . . . . . . . . . . . . . . Trap . | . . . . . . . . . . . . . . Miscellaneous . | . . . . . . . . . . . . . . Route ------- -11/Scrapyard -10/Materials (discovered 5 exits: [*Mat x3] / [*Min x2]) -10/Mines -10/Subcaves (discovered 3 exits: [*Mat x2] / [*Rec]) -9/Recycling -9/Scraptown -6/Factory (discovered 3 exits: *Low x2 / Ext) -6/Lower Caves -6/Lower Caves -6/Data Miner -5/Proximity Caves -5/Factory (discovered 2 exits: *Fac / Upp) -4/Factory -3/Research History --------- Turn | Location | Event 15 | -11/Scrapyard | Discovered new exit (range 16) 171 | -11/Scrapyard | Entered Materials 292 | -10/Materials | Discovered new exit (range 15) 329 | -10/Materials | Build established: Mutant 374 | -10/Materials | Discovered new exit (range 15) 516 | -10/Materials | Discovered new exit (range 3) 737 | -10/Materials | Discovered new exit (range 5) 1510 | -10/Materials | Discovered new exit (range 16) 1596 | -10/Materials | Central database locked down 1709 | -10/Materials | Entered Mines 1745 | -10/Mines | Discovered new exit (range 5) 1757 | -10/Mines | Entered Subcaves 2141 | -10/Subcaves | Shifting Twisted Machinery released Sub. Monowheel 2142 | -10/Subcaves | Shifting Twisted Machinery released Scrap Shield 2260 | -10/Subcaves | Discovered new exit (range 16) 3710 | -10/Subcaves | Discovered new exit (range 11) 4124 | -10/Subcaves | Discovered new exit (range 11) 4163 | -10/Subcaves | Visited 4L-MR0's lab 4185 | -10/Subcaves | Found Cargo Legs 4612 | -10/Subcaves | Entered Recycling 4792 | -9/Recycling | Scanned before Scraplab entrance 4815 | -9/Recycling | Entered Scraplab 4828 | -9/Recycling | Discovered new exit (range 3) 4832 | -9/Recycling | Entered Scraptown 4832 | -9/Scraptown | System corruption cleaned by C-Scrubber 5144 | -9/Scraptown | Scanned Subdweller tech in exchange for log data 5152 | -9/Scraptown | Learned Research stockpile data 5553 | -9/Scraptown | Visited Fellowship of the Rings 5591 | -9/Scraptown | Visited Cyclists 5623 | -9/Scraptown | Visited Spacefarers 5633 | -9/Scraptown | Visited Assassins FH 5645 | -9/Scraptown | Visited Shadow of the Wyrm 5681 | -9/Scraptown | Visited CPS Storage 5711 | -9/Scraptown | Visited UFD Registry 5711 | -9/Scraptown | Registered with UFD as "Wavelever" 5749 | -9/Scraptown | Visited Observation Area 5772 | -9/Scraptown | Visited Junk Repository 5822 | -9/Scraptown | Visited Science Guys 5902 | -9/Scraptown | Delivered Scrap Shield to a Scientist 6025 | -9/Scraptown | Visited Junk Repository 6122 | -9/Scraptown | Visited Derelict Rescue Squad 6143 | -9/Scraptown | Visited Scrap Suit Storage 6157 | -9/Scraptown | Visited Cartography Club 6341 | -9/Scraptown | Visited Chapter 10 6369 | -9/Scraptown | Visited LU-1G1's Boring Crew 6394 | -9/Scraptown | Visited Botcube Research 6530 | -9/Scraptown | Discovered new exit (range 5) 6538 | -9/Scraptown | Entered Factory 6538 | -6/Factory | Evolved 8 slots: Power x1, Propulsion x2, Utility x4, Weapon x1 6539 | -6/Factory | Identified exit to Lower Caves 6539 | -6/Factory | Identified exit to Extension 6571 | -6/Factory | Attached Cargo Legs, gained temporary slots: Utility x2 6712 | -6/Factory | Spotted B-75 Beast 6715 | -6/Factory | Loaded intel: 8 recycling unit locations 6827 | -6/Factory | Lost 8 parts (1p2n4u1w) 7017 | -6/Factory | Discovered exit to Lower Caves (range 3) 7100 | -6/Factory | Entered Lower Caves 7102 | -6/Lower Caves | UFD Scientist delivered a prototype 7108 | -6/Lower Caves | Found Prototype Protection 7108 | -6/Lower Caves | Identified Enh. Scrap Shield 7428 | -6/Lower Caves | Attracted the attention of an 0b10 checkpoint 7515 | -6/Lower Caves | Learned location of 1 exit from Factory 8158 | -6/Lower Caves | Encountered a Warlord checkpoint 8193 | -6/Lower Caves | Discovered new exit (range 9) 8292 | -6/Lower Caves | Entered another Lower Caves area 8530 | -6/Lower Caves | Encountered a Warlord checkpoint 8550 | -6/Lower Caves | Learned Factory terminal intel 8763 | -6/Lower Caves | Attracted the attention of an 0b10 checkpoint 8918 | -6/Lower Caves | Discovered new exit (range 5) 8996 | -6/Lower Caves | Entered Data Miner 8996 | -6/Data Miner | Discovered new exit (range 6) 9046 | -6/Data Miner | Met Data Miner 9136 | -6/Data Miner | Learned location of Section 7 (-2) 9136 | -6/Data Miner | Acquired the access code to Warlord's prototype stash 9193 | -6/Data Miner | Received God Mode back door access code from Data Miner 9250 | -6/Data Miner | Entered Proximity Caves 9274 | -5/Proximity Caves | Spotter reported a threat 9274 | -5/Proximity Caves | Spotter reported a threat 9448 | -5/Proximity Caves | Spotter reported a threat 9555 | -5/Proximity Caves | Core integrity fell below 50% 9594 | -5/Proximity Caves | Lost 5 parts (2p1n2u) 9761 | -5/Proximity Caves | Spotter reported a threat 9962 | -5/Proximity Caves | Escorted by Enhanced Grunt 9980 | -5/Proximity Caves | Lost 3 parts (1p1n1w) 9998 | -5/Proximity Caves | Spotter reported a threat 10009 | -5/Proximity Caves | Spotter reported a threat 10013 | -5/Proximity Caves | Identified exit to Factory 10054 | -5/Proximity Caves | Learned 4 Factory zone layouts 10062 | -5/Proximity Caves | Spotter reported a threat 10063 | -5/Proximity Caves | Spotter reported a threat 10075 | -5/Proximity Caves | Learned location of Armory (-4) 10114 | -5/Proximity Caves | Spotter reported a threat 10172 | -5/Proximity Caves | Spotter reported a threat 10225 | -5/Proximity Caves | Spotter reported a threat 10246 | -5/Proximity Caves | Entered Factory 10246 | -5/Factory | Evolved 2 slots: Utility x1, Weapon x1 10247 | -5/Factory | Identified exit to Upper Caves 10249 | -5/Factory | Loaded intel: 26 terminal locations 10348 | -5/Factory | Loaded intel: 8 recycling unit locations 10403 | -5/Factory | Build established: Derelict-Mutant 10546 | -5/Factory | Search patrols dispatched 10610 | -5/Factory | Discovered new exit (range 11) 10755 | -5/Factory | Incoming investigation squad redirected 10846 | -5/Factory | Search patrols dispatched 10900 | -5/Factory | Incoming investigation squad redirected 10929 | -5/Factory | Identified exit to Factory 10930 | -5/Factory | Entered another Factory area 10930 | -4/Factory | Evolved 2 slots: Utility x2 10962 | -4/Factory | Discovered new exit (range 8) 10965 | -4/Factory | Spotted B-86 Titan 10970 | -4/Factory | Identified exit to Research 10971 | -4/Factory | Entered Research 10971 | -3/Research | Evolved 2 slots: Propulsion x2 11086 | -3/Research | Build established: Scavenger-Mutant 11544 | -3/Research | Lost 5 parts (2n2u1w) 11962 | -3/Research | Lost 4 parts (3n1u) 11996 | -3/Research | System corruption reached 10% 12043 | -3/Research | Core integrity fell below 50% 12061 | -3/Research | Released all parts (7) 12082 | -3/Research | Found Prototype Device 12082 | -3/Research | Identified Exp. EM Disruption Field 12091 | -3/Research | Core integrity fell below 20% 12092 | -3/Research | Lost 15 parts (2p5n1u7w) 12102 | -3/Research | Destroyed by G-67 Veteran with Plasma Rifle Last Messages --------------- 12061_ Released Adv. Target Analyzer. 12061_ Released Adv. Signal Interpreter. 12061_ Released Enh. Optical Array. 12061_ Released Hcp. Storage Unit. 12069_ ALERT: Potential suspicious activity detected, Programmers report to Research Zone 2I. 12070_ C%YWVSLW5DM3KKJXUF6GIR50Q|WMKPDKIFU 12082_ Acquired Prototype Device. 12082_ Identified Exp. EM Disruption Field. 12084_ Dropped Faulty Exp. EM Disruption Field. 12088_ Slammed into S-43 Plague. 12089_ System corrupted: Matter fused (-9). 12089_ Slammed into S-43 Plague. 12090_ Destabilizing: Core damaged (-26). 12091_ Slammed into S-43 Plague. 12093_ Destabilizing: System corrupted (+2). 12094_ Slammed into S-43 Plague. 12101_ Slammed into G-67 Veteran. 12101_ Destabilizing: System corrupted (+1). 12102_ Critical hit (Burn: +50). Map ----- +----------------------------------------------------+ | ??????????????????????????????????????? | | ??????????????????????????????????????? | | ??????????????????????????????????????? | | ??????????????????????????????????????? | | ??????????????????????????????????????? | | ??????????????????????????????????????? | | ??????????????????????????????????????? | | ??????????????????????????????????????? | | ??????????????????????????????????????? | | ??????????????????????????????????????? | | ?????????????????????????? ???????????? | | ?????????????????????????? ???????????? | | ?????????????????????????? ???????????? | | ?????????????????????????? ???????????? | | ?????????????????????????? ???????????? | | ?????????????????????????? ???????????? | | ?????????????????????????? ###????##### | | ?????????????????????????? # ?"""" | | ?????????????????????????? # ""S"" | | ?????????????????????????? # "" "" | | ?????????????############# # | | ?????????????# + | | ?????????????# ##### # | | ?????????????#k#???# # | | ?????????????#g#??## # """ """ | | ?????????????#@#??# # """ """ | | ?????????????#g#??#T # """ """ | | ?????????????#s#??## # ?? | | ?????????????# #???# #?? ???? | | ?????????????# #???# #####+###### | | ?????????????# #???# ^ ^ | | ?????????????# #???# # ##### ###### | | ?????????????# ######/# = %## #????? | | ?????????????# ## |*| *!## #????? | | ?????????????# ## !!% ##!#????? | | ?????????????# ##= *#!! ##[#????? | | ?????????????# ## #! ##%#????? | | ?????????????# ## # ##!#????? | | ?????????????# ## * #########+###### | | ????????????## #########???????#[|! | | ????????????# # #???????#[==! | | ????????????# + ! #???????#%""" [ | | ????????????#! # #???????#|""" | | ????????????##### #???????#"""" | | ????????????????# #???????#"""" | | ????????????????# ! !#???????# | | ????????????????########???????# | | ???????????????????????????????# | | ??????????????????????????############# | | ??????????????????????????# | +----------------------------------------------------+ Best States ------------- Heat Dissipation 46 Energy Generation 35 Energy Capacity 500 Matter Stores 300 Matter Capacity 300 Sight Range 22 Robot Scan Range 16 Terrain Scan Range 16 Terrain Scan Density 10 Jamming Range 12 Additional Mass Support 12 Armor Coverage 950 Resistance: KI 20 Power Shielding 66 Phase Shifting 5 Evasion (%) 55 Target Analysis 12 Core Analysis 6 Armor Integrity Analysis 30 Recoil Reduction 2 Authchip Count 1 Item Schematics ----------------- Combat Drone Bay | -6/Data Miner | Free Lgt. Regenerative Plating | -6/Data Miner | Free Cld. Nuclear Pulse Thruster | -6/Data Miner | Free Imp. Energy Well | -6/Data Miner | Free Kinetic Spear | -6/Data Miner | Free Imp. Heavy Treads | -6/Data Miner | Free Adv. Reaction Control System | -6/Data Miner | Free Imp. Force Booster | -6/Data Miner | Free Phase Gun | -6/Data Miner | Free Arm. Heavy Treads | -6/Data Miner | Free Adv. Force Field | -6/Data Miner | Free Robot Schematics ------------------ S-27 Virus | -6/Data Miner | Free L-41 Fighter | -6/Data Miner | Free B-60 Warrior | -6/Data Miner | Free M-22 Extractor | -6/Data Miner | Free Fabricated ------------ Nothing Repaired ---------- Nothing Studied --------- Carbon-fiber Leg | -3/Research | Hacked Alien Tech Used ----------------- None Achievements -------------- Fancy Inventory Challenges ------------ None Game ------ Seed EnergyFlyingCape Manual? 0 Play Time 01:11:08 Cumulative 89.0 hours Start 2026.02.18 @ 15:57:05 End 2026.02.18 @ 17:10:47 Sessions 1 Manual Loads 0 Difficulty Rogue Special Mode None Game No. 183 Rogue 183 Adventurer 0 Explorer 0 Win Type - Total 1 Types 1/0/0/0/0/0/0/0/0/0 Lore% 50 Gallery% 39 Achievement% 39 Wizard Run 0 Options --------- Layout 0 ASCII 0 Keyboard 1 Movement Arrows Keybinds 0 Fullscreen 1 Font 18/Smallcaps Map View 76x50 Zoom Use 41% Tactical HUD 1 Map Filters NONE Filters NONE Steam 1 RUN: d7ffab7f-e311-4b84-8c8c-f19021f767b3